[Event "Titled Tuesday Blitz February 28 Early 2023"]
[White "Grot, Blazej"]
[Black "Souleidis, Georgios"]
[WhiteFideId "21835845"]
[BlackFideId "4206827"]
[WhiteElo "1823"]
[BlackElo "2401"]
[Result "1/2-1/2"]
[Round "08"]
[TimeControl "180+2"]
[Date "2023.02.28"]
[WhiteClock "0:00:36"]
[BlackClock "0:00:20"]

1. e4 {[%clk 0:03:00]}  c5 {[%clk 0:02:20]} 2. Nf3 {[%clk 0:02:59]}  e6 {[%clk 0:02:19]} 3. d4 {[%clk 0:02:55]}  cxd4 {[%clk 0:02:20]} 4. Nxd4 {[%clk 0:02:55]}  Nf6 {[%clk 0:02:21]} 5. Nc3 {[%clk 0:02:47]}  Nc6 {[%clk 0:02:21]} 6. Ndb5 {[%clk 0:02:46]}  Bc5 {[%clk 0:02:21]} 7. Bf4 {[%clk 0:02:41]}  O-O {[%clk 0:02:20]} 8. Bc7 {[%clk 0:02:40]}  Qe7 {[%clk 0:02:20]} 9. Bd6 {[%clk 0:02:41]}  Bxd6 {[%clk 0:02:20]} 10. Qxd6 {[%clk 0:02:36]}  Qd8 {[%clk 0:02:21]} 11. O-O-O {[%clk 0:02:30]}  a6 {[%clk 0:02:21]} 12. Nc7 {[%clk 0:02:27]}  Rb8 {[%clk 0:02:19]} 13. Be2 {[%clk 0:02:16]}  b5 {[%clk 0:02:11]} 14. e5 {[%clk 0:02:12]}  Ne8 {[%clk 0:02:08]} 15. Nxe8 {[%clk 0:02:12]}  Rxe8 {[%clk 0:01:49]} 16. h4 {[%clk 0:02:10]}  Qe7 {[%clk 0:01:31]} 17. f4 {[%clk 0:02:04]}  Qxd6 {[%clk 0:01:25]} 18. Rxd6 {[%clk 0:02:05]}  Ne7 {[%clk 0:01:10]} 19. a3 {[%clk 0:01:59]}  Bb7 {[%clk 0:01:03]} 20. Bf3 {[%clk 0:01:57]}  Bxf3 {[%clk 0:01:02]} 21. gxf3 {[%clk 0:01:53]}  Rb7 {[%clk 0:01:03]} 22. Rhd1 {[%clk 0:01:51]}  Nf5 {[%clk 0:00:54]} 23. Rxa6 {[%clk 0:01:46]}  Nxh4 {[%clk 0:00:54]} 24. Rad6 {[%clk 0:01:31]}  Nxf3 {[%clk 0:00:35]} 25. Rxd7 {[%clk 0:01:27]}  Rxd7 {[%clk 0:00:36]} 26. Rxd7 {[%clk 0:01:27]}  g5 {[%clk 0:00:24]} 27. Ne4 {[%clk 0:01:26]}  Rf8 {[%clk 0:00:19]} 28. Nxg5 {[%clk 0:01:20]}  Nxg5 {[%clk 0:00:19]} 29. fxg5 {[%clk 0:01:16]}  Kg7 {[%clk 0:00:20]} 30. b4 {[%clk 0:01:12]}  Kg6 {[%clk 0:00:19]} 31. Kb2 {[%clk 0:01:08]}  Kxg5 {[%clk 0:00:20]} 32. c4 {[%clk 0:01:03]}  bxc4 {[%clk 0:00:19]} 33. a4 {[%clk 0:00:59]}  h5 {[%clk 0:00:20]} 34. a5 {[%clk 0:00:57]}  Rb8 {[%clk 0:00:17]} 35. Kc3 {[%clk 0:00:53]}  h4 {[%clk 0:00:18]} 36. Rxf7 {[%clk 0:00:48]}  h3 {[%clk 0:00:18]} 37. Rg7+ {[%clk 0:00:48]}  Kf4 {[%clk 0:00:18]} 38. Rh7 {[%clk 0:00:47]}  Kg3 {[%clk 0:00:18]} 39. Rg7+ {[%clk 0:00:40]}  Kf2 {[%clk 0:00:18]} 40. Rh7 {[%clk 0:00:37]}  Kg2 {[%clk 0:00:19]} 41. Rg7+ {[%clk 0:00:37]}  Kf2 {[%clk 0:00:19]} 42. Rh7 {[%clk 0:00:36]}  Kg2 {[%clk 0:00:20]} 43. Rg7+ {[%clk 0:00:36]}  Kf2 {[%clk 0:00:20]} 1/2-1/2


[Site "https://www.chess.com"]

[Event "Titled Tuesday Blitz February 28 Early 2023"]
[White "benny_aizenberg"]
[Black "Chernomordik, Pavel"]
[BlackFideId "2804530"]
[WhiteElo "2571"]
[BlackElo "2193"]
[Result "1-0"]
[Round "08"]
[TimeControl "180+2"]
[Date "2023.02.28"]
[WhiteClock "0:00:10"]
[BlackClock "0:00:05"]

1. e4 {[%clk 0:03:00]}  g6 {[%clk 0:02:59]} 2. d4 {[%clk 0:03:01]}  Bg7 {[%clk 0:02:59]} 3. Nc3 {[%clk 0:03:01]}  d6 {[%clk 0:02:59]} 4. f4 {[%clk 0:02:58]}  a6 {[%clk 0:02:58]} 5. Nf3 {[%clk 0:02:55]}  b5 {[%clk 0:02:56]} 6. Bd3 {[%clk 0:02:55]}  Nd7 {[%clk 0:02:56]} 7. e5 {[%clk 0:02:54]}  c5 {[%clk 0:02:56]} 8. Ne4 {[%clk 0:02:48]}  cxd4 {[%clk 0:02:36]} 9. exd6 {[%clk 0:02:40]}  Ngf6 {[%clk 0:02:28]} 10. O-O {[%clk 0:02:28]}  O-O {[%clk 0:02:25]} 11. Re1 {[%clk 0:02:21]}  Bb7 {[%clk 0:02:02]} 12. Nxf6+ {[%clk 0:02:07]}  exf6 {[%clk 0:01:53]} 13. f5 {[%clk 0:01:46]}  Nc5 {[%clk 0:01:49]} 14. Bf4 {[%clk 0:01:45]}  Re8 {[%clk 0:01:33]} 15. Rxe8+ {[%clk 0:01:23]}  Qxe8 {[%clk 0:01:33]} 16. Bf1 {[%clk 0:01:14]}  g5 {[%clk 0:01:21]} 17. Qxd4 {[%clk 0:01:00]}  Qc6 {[%clk 0:01:07]} 18. Be3 {[%clk 0:00:49]}  Nd7 {[%clk 0:01:00]} 19. c3 {[%clk 0:00:34]}  Bf8 {[%clk 0:00:57]} 20. Rd1 {[%clk 0:00:31]}  Re8 {[%clk 0:00:56]} 21. Bf2 {[%clk 0:00:30]}  Re4 {[%clk 0:00:52]} 22. Qd2 {[%clk 0:00:24]}  g4 {[%clk 0:00:45]} 23. Nd4 {[%clk 0:00:21]}  Qxd6 {[%clk 0:00:44]} 24. Nxb5 {[%clk 0:00:18]}  Qxd2 {[%clk 0:00:38]} 25. Rxd2 {[%clk 0:00:19]}  Ne5 {[%clk 0:00:23]} 26. Nd6 {[%clk 0:00:19]}  Bxd6 {[%clk 0:00:18]} 27. Rxd6 {[%clk 0:00:20]}  Kg7 {[%clk 0:00:13]} 28. Bd4 {[%clk 0:00:18]}  Bc8 {[%clk 0:00:08]} 29. Bxa6 {[%clk 0:00:16]}  Bxf5 {[%clk 0:00:07]} 30. a4 {[%clk 0:00:13]}  Re1+ {[%clk 0:00:07]} 31. Kf2 {[%clk 0:00:13]}  Rb1 {[%clk 0:00:05]} 32. c4 {[%clk 0:00:10]} 1-0


[Site "https://www.chess.com"]

[Event "Titled Tuesday Blitz February 28 Early 2023"]
[White "Prudnykova, Olga"]
[Black "Martin Duque, Jesus"]
[WhiteFideId "14121093"]
[BlackFideId "2208954"]
[WhiteElo "2174"]
[BlackElo "2305"]
[Result "0-1"]
[Round "08"]
[TimeControl "180+2"]
[Date "2023.02.28"]
[WhiteClock "0:00:15"]
[BlackClock "0:02:19"]

1. e4 {[%clk 0:02:59]}  d5 {[%clk 0:02:59]} 2. exd5 {[%clk 0:02:59]}  Qxd5 {[%clk 0:03:00]} 3. Nc3 {[%clk 0:03:00]}  Qa5 {[%clk 0:03:00]} 4. g3 {[%clk 0:03:00]}  c6 {[%clk 0:02:57]} 5. Bg2 {[%clk 0:03:00]}  g6 {[%clk 0:02:57]} 6. Nf3 {[%clk 0:03:00]}  Bg7 {[%clk 0:02:57]} 7. Rb1 {[%clk 0:02:58]}  Nf6 {[%clk 0:02:57]} 8. b4 {[%clk 0:02:57]}  Qh5 {[%clk 0:02:55]} 9. h3 {[%clk 0:02:53]}  g5 {[%clk 0:02:46]} 10. b5 {[%clk 0:02:34]}  Qg6 {[%clk 0:02:42]} 11. Ne5 {[%clk 0:02:11]}  Qf5 {[%clk 0:02:42]} 12. d4 {[%clk 0:02:12]}  Nfd7 {[%clk 0:02:38]} 13. bxc6 {[%clk 0:01:43]}  Nxc6 {[%clk 0:02:36]} 14. Nxc6 {[%clk 0:01:41]}  bxc6 {[%clk 0:02:37]} 15. Bxc6 {[%clk 0:01:40]}  Qe6+ {[%clk 0:02:37]} 16. Be4 {[%clk 0:01:33]}  f5 {[%clk 0:02:36]} 17. O-O {[%clk 0:01:17]}  fxe4 {[%clk 0:02:35]} 18. Qh5+ {[%clk 0:01:08]}  Kf8 {[%clk 0:02:34]} 19. Nb5 {[%clk 0:00:59]}  Nf6 {[%clk 0:02:33]} 20. Qxg5 {[%clk 0:00:52]}  Qxh3 {[%clk 0:02:33]} 21. Nc7 {[%clk 0:00:47]}  Bg4 {[%clk 0:02:32]} 22. Qh4 {[%clk 0:00:39]}  Qxh4 {[%clk 0:02:30]} 23. gxh4 {[%clk 0:00:39]}  Rc8 {[%clk 0:02:30]} 24. Bf4 {[%clk 0:00:37]}  Nh5 {[%clk 0:02:27]} 25. Bh2 {[%clk 0:00:34]}  Bxd4 {[%clk 0:02:27]} 26. Rb5 {[%clk 0:00:24]}  Bb6 {[%clk 0:02:26]} 27. Rg5 {[%clk 0:00:19]}  Bxc7 {[%clk 0:02:20]} 28. Rxg4 {[%clk 0:00:19]}  Nf6 {[%clk 0:02:18]} 29. Rg5 {[%clk 0:00:17]}  Bxh2+ {[%clk 0:02:19]} 30. Kxh2 {[%clk 0:00:17]}  Rxc2 {[%clk 0:02:19]} 31. Kg3 {[%clk 0:00:17]}  h6 {[%clk 0:02:18]} 32. Rb5 {[%clk 0:00:16]}  Rg8+ {[%clk 0:02:18]} 33. Kf4 {[%clk 0:00:17]}  Rxa2 {[%clk 0:02:18]} 34. Rb8+ {[%clk 0:00:15]}  Kf7 {[%clk 0:02:19]} 0-1


[Site "https://www.chess.com"]

[Event "Titled Tuesday Blitz February 28 Early 2023"]
[White "Peng, Li Min"]
[Black "Bas Mas, Jose Joaquin"]
[WhiteFideId "14112620"]
[BlackFideId "22219064"]
[WhiteElo "2436"]
[BlackElo "2233"]
[Result "0-1"]
[Round "08"]
[TimeControl "180+2"]
[Date "2023.02.28"]
[WhiteClock "0:00:36"]
[BlackClock "0:00:46"]

1. e4 {[%clk 0:03:00]}  e6 {[%clk 0:02:59]} 2. d3 {[%clk 0:02:57]}  d5 {[%clk 0:02:59]} 3. Qe2 {[%clk 0:02:58]}  Ne7 {[%clk 0:02:52]} 4. e5 {[%clk 0:02:52]}  c5 {[%clk 0:02:52]} 5. f4 {[%clk 0:02:51]}  Nbc6 {[%clk 0:02:52]} 6. Nf3 {[%clk 0:02:52]}  Nf5 {[%clk 0:02:49]} 7. Qf2 {[%clk 0:02:37]}  Be7 {[%clk 0:02:42]} 8. c3 {[%clk 0:02:31]}  O-O {[%clk 0:02:41]} 9. Na3 {[%clk 0:02:23]}  a6 {[%clk 0:02:34]} 10. Nc2 {[%clk 0:02:21]}  b5 {[%clk 0:02:21]} 11. Ne3 {[%clk 0:02:19]}  Nxe3 {[%clk 0:02:20]} 12. Bxe3 {[%clk 0:02:20]}  d4 {[%clk 0:02:12]} 13. cxd4 {[%clk 0:02:18]}  cxd4 {[%clk 0:02:11]} 14. Nxd4 {[%clk 0:02:15]}  Bb4+ {[%clk 0:02:06]} 15. Kd1 {[%clk 0:02:15]}  Nxd4 {[%clk 0:01:56]} 16. Bxd4 {[%clk 0:02:16]}  Bb7 {[%clk 0:01:56]} 17. Rc1 {[%clk 0:02:04]}  Qd5 {[%clk 0:01:49]} 18. a3 {[%clk 0:01:57]}  Be7 {[%clk 0:01:48]} 19. Be3 {[%clk 0:01:41]}  Rac8 {[%clk 0:01:43]} 20. Rc3 {[%clk 0:00:53]}  b4 {[%clk 0:01:20]} 21. axb4 {[%clk 0:00:50]}  Bxb4 {[%clk 0:01:20]} 22. Rc2 {[%clk 0:00:45]}  Qa2 {[%clk 0:01:07]} 23. Bc1 {[%clk 0:00:42]}  Bd5 {[%clk 0:01:00]} 24. Rxc8 {[%clk 0:00:38]}  Rxc8 {[%clk 0:00:59]} 25. Qe3 {[%clk 0:00:39]}  Qb1 {[%clk 0:00:48]} 26. d4 {[%clk 0:00:36]}  Qc2# {[%clk 0:00:46]} 0-1


[Site "https://www.chess.com"]

[Event "Titled Tuesday Blitz February 28 Early 2023"]
[White "Comas Fabrego, Lluis"]
[Black "Cheng, Xiao"]
[WhiteFideId "2200325"]
[BlackFideId "2022915"]
[WhiteElo "2523"]
[BlackElo "2446"]
[Result "0-1"]
[Round "08"]
[TimeControl "180+2"]
[Date "2023.02.28"]
[WhiteClock "0:00:01"]
[BlackClock "0:00:35"]

1. e4 {[%clk 0:03:00]}  c5 {[%clk 0:02:39]} 2. Nc3 {[%clk 0:03:00]}  Nc6 {[%clk 0:02:39]} 3. Bb5 {[%clk 0:02:59]}  Nd4 {[%clk 0:02:38]} 4. Nf3 {[%clk 0:02:59]}  e6 {[%clk 0:02:35]} 5. O-O {[%clk 0:02:59]}  Ne7 {[%clk 0:02:35]} 6. Nxd4 {[%clk 0:02:59]}  cxd4 {[%clk 0:02:36]} 7. Ne2 {[%clk 0:02:59]}  Nc6 {[%clk 0:02:36]} 8. c3 {[%clk 0:02:57]}  Bc5 {[%clk 0:02:33]} 9. b4 {[%clk 0:02:57]}  Bb6 {[%clk 0:02:33]} 10. Bb2 {[%clk 0:02:53]}  dxc3 {[%clk 0:02:16]} 11. Bxc3 {[%clk 0:02:53]}  O-O {[%clk 0:02:16]} 12. a4 {[%clk 0:02:48]}  d5 {[%clk 0:02:16]} 13. exd5 {[%clk 0:02:27]}  Qxd5 {[%clk 0:02:15]} 14. Nf4 {[%clk 0:02:20]}  Qg5 {[%clk 0:02:14]} 15. Qf3 {[%clk 0:02:09]}  Nd4 {[%clk 0:02:14]} 16. Bxd4 {[%clk 0:02:01]}  Bxd4 {[%clk 0:02:13]} 17. Rac1 {[%clk 0:02:01]}  a6 {[%clk 0:02:11]} 18. Bd3 {[%clk 0:01:55]}  e5 {[%clk 0:02:09]} 19. Nh3 {[%clk 0:01:39]}  Qxd2 {[%clk 0:02:05]} 20. Rfd1 {[%clk 0:01:26]}  Qh6 {[%clk 0:01:52]} 21. Bf5 {[%clk 0:01:15]}  Bxf5 {[%clk 0:01:38]} 22. Qxf5 {[%clk 0:01:14]}  Qd6 {[%clk 0:01:34]} 23. Ng5 {[%clk 0:01:09]}  g6 {[%clk 0:01:31]} 24. Qh3 {[%clk 0:01:08]}  h5 {[%clk 0:01:27]} 25. b5 {[%clk 0:00:59]}  axb5 {[%clk 0:01:25]} 26. axb5 {[%clk 0:00:59]}  Ra2 {[%clk 0:01:25]} 27. Ne4 {[%clk 0:00:59]}  Qe7 {[%clk 0:01:18]} 28. Qg3 {[%clk 0:00:46]}  Kg7 {[%clk 0:01:13]} 29. h4 {[%clk 0:00:41]}  Rd8 {[%clk 0:01:01]} 30. b6 {[%clk 0:00:25]}  f5 {[%clk 0:00:59]} 31. Rc7 {[%clk 0:00:21]}  Rd7 {[%clk 0:00:51]} 32. Rxd7 {[%clk 0:00:21]}  Qxd7 {[%clk 0:00:52]} 33. Qxe5+ {[%clk 0:00:21]}  Bxe5 {[%clk 0:00:52]} 34. Rxd7+ {[%clk 0:00:22]}  Kf8 {[%clk 0:00:50]} 35. Ng3 {[%clk 0:00:16]}  Rb2 {[%clk 0:00:48]} 36. Rxb7 {[%clk 0:00:15]}  Bd4 {[%clk 0:00:48]} 37. Rb8+ {[%clk 0:00:14]}  Ke7 {[%clk 0:00:47]} 38. b7 {[%clk 0:00:14]}  Bxf2+ {[%clk 0:00:45]} 39. Kh2 {[%clk 0:00:15]}  Ba7 {[%clk 0:00:43]} 40. Rh8 {[%clk 0:00:09]}  Kf6 {[%clk 0:00:38]} 41. Rh7 {[%clk 0:00:08]}  Bb8 {[%clk 0:00:36]} 42. Kh3 {[%clk 0:00:06]}  Rb3 {[%clk 0:00:36]} 43. Rh8 {[%clk 0:00:01]}  Bxg3 {[%clk 0:00:35]} 0-1


[Site "https://www.chess.com"]

[Event "Titled Tuesday Blitz February 28 Early 2023"]
[White "Kochetov, Andrey"]
[Black "Tologon tegin, Semetei"]
[WhiteFideId "24130532"]
[BlackFideId "13800574"]
[WhiteElo "2440"]
[BlackElo "2247"]
[Result "1-0"]
[Round "08"]
[TimeControl "180+2"]
[Date "2023.02.28"]
[WhiteClock "0:00:13"]
[BlackClock "0:00:08"]

1. e4 {[%clk 0:03:00]}  c6 {[%clk 0:02:58]} 2. d4 {[%clk 0:03:00]}  d5 {[%clk 0:02:59]} 3. Nc3 {[%clk 0:02:59]}  dxe4 {[%clk 0:03:00]} 4. Nxe4 {[%clk 0:03:00]}  Bf5 {[%clk 0:02:59]} 5. Ng3 {[%clk 0:03:00]}  Bg6 {[%clk 0:02:59]} 6. h4 {[%clk 0:03:00]}  h6 {[%clk 0:03:00]} 7. Nf3 {[%clk 0:03:00]}  Nd7 {[%clk 0:02:59]} 8. h5 {[%clk 0:03:01]}  Bh7 {[%clk 0:03:00]} 9. Bd3 {[%clk 0:03:01]}  Bxd3 {[%clk 0:03:00]} 10. Qxd3 {[%clk 0:03:02]}  e6 {[%clk 0:03:00]} 11. Bd2 {[%clk 0:03:03]}  Ngf6 {[%clk 0:02:59]} 12. O-O-O {[%clk 0:03:03]}  Bd6 {[%clk 0:02:59]} 13. Ne4 {[%clk 0:03:03]}  Nxe4 {[%clk 0:02:59]} 14. Qxe4 {[%clk 0:03:03]}  Nf6 {[%clk 0:03:00]} 15. Qe2 {[%clk 0:03:04]}  Qc7 {[%clk 0:03:01]} 16. Kb1 {[%clk 0:03:02]}  O-O-O {[%clk 0:02:59]} 17. c4 {[%clk 0:03:01]}  c5 {[%clk 0:02:55]} 18. Bc3 {[%clk 0:03:00]}  a6 {[%clk 0:02:36]} 19. dxc5 {[%clk 0:02:52]}  Bxc5 {[%clk 0:02:32]} 20. Ne5 {[%clk 0:02:50]}  Kb8 {[%clk 0:02:22]} 21. g4 {[%clk 0:02:47]}  Ka8 {[%clk 0:02:21]} 22. f4 {[%clk 0:02:20]}  Bd6 {[%clk 0:02:13]} 23. Rd4 {[%clk 0:02:05]}  Bxe5 {[%clk 0:02:12]} 24. Rxd8+ {[%clk 0:02:05]}  Rxd8 {[%clk 0:02:09]} 25. Bxe5 {[%clk 0:02:05]}  Qc6 {[%clk 0:02:08]} 26. Rc1 {[%clk 0:01:49]}  Ne8 {[%clk 0:01:22]} 27. b3 {[%clk 0:01:33]}  f6 {[%clk 0:01:21]} 28. Bc3 {[%clk 0:01:28]}  Rd7 {[%clk 0:01:07]} 29. Kb2 {[%clk 0:01:26]}  Nc7 {[%clk 0:00:45]} 30. a4 {[%clk 0:01:14]}  b6 {[%clk 0:00:22]} 31. Rg1 {[%clk 0:01:04]}  Kb7 {[%clk 0:00:21]} 32. g5 {[%clk 0:01:03]}  hxg5 {[%clk 0:00:20]} 33. fxg5 {[%clk 0:01:04]}  e5 {[%clk 0:00:20]} 34. gxf6 {[%clk 0:00:58]}  gxf6 {[%clk 0:00:20]} 35. h6 {[%clk 0:00:58]}  Rh7 {[%clk 0:00:19]} 36. Bd2 {[%clk 0:00:35]}  Ne6 {[%clk 0:00:11]} 37. Rg6 {[%clk 0:00:19]}  Nd4 {[%clk 0:00:11]} 38. Qg4 {[%clk 0:00:16]}  Qc7 {[%clk 0:00:10]} 39. Rg7 {[%clk 0:00:15]}  f5 {[%clk 0:00:08]} 40. Rxc7+ {[%clk 0:00:13]} 1-0


[Site "https://www.chess.com"]

[Event "Titled Tuesday Blitz February 28 Early 2023"]
[White "Cella, Glaucio Dalla Cortt"]
[Black "Seletsky, Grigory"]
[WhiteFideId "2119455"]
[BlackFideId "14112191"]
[WhiteElo "2011"]
[BlackElo "2490"]
[Result "1/2-1/2"]
[Round "08"]
[TimeControl "180+2"]
[Date "2023.02.28"]
[WhiteClock "0:00:10"]
[BlackClock "0:00:06"]

1. e4 {[%clk 0:03:00]}  c6 {[%clk 0:02:59]} 2. Nf3 {[%clk 0:03:00]}  d5 {[%clk 0:03:00]} 3. exd5 {[%clk 0:03:01]}  cxd5 {[%clk 0:03:00]} 4. d4 {[%clk 0:03:01]}  Nc6 {[%clk 0:03:00]} 5. c3 {[%clk 0:03:02]}  Bg4 {[%clk 0:03:00]} 6. Qb3 {[%clk 0:03:02]}  Qd7 {[%clk 0:02:59]} 7. Ne5 {[%clk 0:03:01]}  Nxe5 {[%clk 0:03:00]} 8. dxe5 {[%clk 0:03:02]}  a6 {[%clk 0:02:59]} 9. Be3 {[%clk 0:03:03]}  e6 {[%clk 0:02:58]} 10. h3 {[%clk 0:02:40]}  Bh5 {[%clk 0:02:57]} 11. f4 {[%clk 0:02:40]}  Ne7 {[%clk 0:02:56]} 12. g4 {[%clk 0:02:35]}  Bg6 {[%clk 0:02:55]} 13. Bg2 {[%clk 0:02:36]}  Nc6 {[%clk 0:02:47]} 14. Nd2 {[%clk 0:02:34]}  Be7 {[%clk 0:02:29]} 15. O-O {[%clk 0:02:35]}  O-O {[%clk 0:02:29]} 16. Nf3 {[%clk 0:02:20]}  Be4 {[%clk 0:02:26]} 17. Rae1 {[%clk 0:02:11]}  b5 {[%clk 0:02:19]} 18. Qd1 {[%clk 0:02:11]}  b4 {[%clk 0:01:58]} 19. Bf2 {[%clk 0:02:11]}  Qb7 {[%clk 0:01:56]} 20. Rxe4 {[%clk 0:02:05]}  dxe4 {[%clk 0:01:55]} 21. Nd2 {[%clk 0:02:06]}  bxc3 {[%clk 0:01:55]} 22. bxc3 {[%clk 0:02:03]}  Qb5 {[%clk 0:01:50]} 23. Nxe4 {[%clk 0:01:57]}  Rfd8 {[%clk 0:01:48]} 24. Nd6 {[%clk 0:01:34]}  Bxd6 {[%clk 0:01:46]} 25. exd6 {[%clk 0:01:35]}  Rd7 {[%clk 0:01:46]} 26. f5 {[%clk 0:01:17]}  exf5 {[%clk 0:01:42]} 27. c4 {[%clk 0:01:17]}  Qxc4 {[%clk 0:01:20]} 28. Qc1 {[%clk 0:01:18]}  Qxc1 {[%clk 0:01:18]} 29. Rxc1 {[%clk 0:01:19]}  Rxd6 {[%clk 0:01:17]} 30. Rxc6 {[%clk 0:01:15]}  Rxc6 {[%clk 0:01:16]} 31. Bxc6 {[%clk 0:01:16]}  Rc8 {[%clk 0:01:09]} 32. Bb7 {[%clk 0:00:41]}  Rc1+ {[%clk 0:01:09]} 33. Kg2 {[%clk 0:00:37]}  fxg4 {[%clk 0:01:10]} 34. hxg4 {[%clk 0:00:35]}  a5 {[%clk 0:01:07]} 35. Bd5 {[%clk 0:00:30]}  a4 {[%clk 0:01:04]} 36. Bc6 {[%clk 0:00:26]}  a3 {[%clk 0:01:02]} 37. Bd5 {[%clk 0:00:26]}  h6 {[%clk 0:01:00]} 38. Kf3 {[%clk 0:00:21]}  Rc2 {[%clk 0:00:58]} 39. Bb3 {[%clk 0:00:18]}  Rc3+ {[%clk 0:00:57]} 40. Ke4 {[%clk 0:00:16]}  g6 {[%clk 0:00:49]} 41. Bc5 {[%clk 0:00:15]}  Rh3 {[%clk 0:00:30]} 42. Bxa3 {[%clk 0:00:13]}  h5 {[%clk 0:00:27]} 43. gxh5 {[%clk 0:00:13]}  Rxh5 {[%clk 0:00:27]} 44. Be7 {[%clk 0:00:10]}  Kg7 {[%clk 0:00:26]} 45. a4 {[%clk 0:00:10]}  f5+ {[%clk 0:00:20]} 46. Ke5 {[%clk 0:00:09]}  Rh1 {[%clk 0:00:18]} 47. Bf6+ {[%clk 0:00:09]}  Kh6 {[%clk 0:00:18]} 48. a5 {[%clk 0:00:09]}  Ra1 {[%clk 0:00:16]} 49. Bd8 {[%clk 0:00:08]}  Ra3 {[%clk 0:00:12]} 50. Bc4 {[%clk 0:00:08]}  Ra4 {[%clk 0:00:12]} 51. Bb5 {[%clk 0:00:07]}  Re4+ {[%clk 0:00:11]} 52. Kf6 {[%clk 0:00:07]}  f4 {[%clk 0:00:11]} 53. a6 {[%clk 0:00:06]}  Re1 {[%clk 0:00:08]} 54. a7 {[%clk 0:00:06]}  Ra1 {[%clk 0:00:09]} 55. Bb6 {[%clk 0:00:06]}  f3 {[%clk 0:00:07]} 56. Bc6 {[%clk 0:00:07]}  Rxa7 {[%clk 0:00:07]} 57. Bxa7 {[%clk 0:00:07]}  g5 {[%clk 0:00:07]} 58. Kf5 {[%clk 0:00:07]}  Kh5 {[%clk 0:00:07]} 59. Bxf3+ {[%clk 0:00:08]}  Kh4 {[%clk 0:00:07]} 60. Bg4 {[%clk 0:00:09]}  Kg3 {[%clk 0:00:06]} 61. Bb8+ {[%clk 0:00:09]}  Kh4 {[%clk 0:00:06]} 62. Bd6 {[%clk 0:00:10]} 1/2-1/2


[Site "https://www.chess.com"]

[Event "Titled Tuesday Blitz February 28 Early 2023"]
[White "Bilan, Danila"]
[Black "Hajiyev, Kanan"]
[WhiteFideId "24161918"]
[BlackFideId "13404148"]
[WhiteElo "2182"]
[BlackElo "2103"]
[Result "1-0"]
[Round "08"]
[TimeControl "180+2"]
[Date "2023.02.28"]
[WhiteClock "0:00:04"]
[BlackClock "0:00:04"]

1. d4 {[%clk 0:02:58]}  Nf6 {[%clk 0:02:59]} 2. Nf3 {[%clk 0:02:58]}  b6 {[%clk 0:02:58]} 3. g3 {[%clk 0:02:59]}  Bb7 {[%clk 0:02:58]} 4. Bg2 {[%clk 0:02:59]}  e6 {[%clk 0:02:59]} 5. O-O {[%clk 0:03:00]}  Be7 {[%clk 0:03:00]} 6. c4 {[%clk 0:03:01]}  O-O {[%clk 0:03:00]} 7. d5 {[%clk 0:03:01]}  exd5 {[%clk 0:02:59]} 8. Nh4 {[%clk 0:03:01]}  Ne4 {[%clk 0:02:29]} 9. cxd5 {[%clk 0:03:01]}  Bxh4 {[%clk 0:02:23]} 10. Bxe4 {[%clk 0:03:01]}  Bf6 {[%clk 0:02:23]} 11. Nc3 {[%clk 0:03:00]}  Na6 {[%clk 0:02:19]} 12. Qc2 {[%clk 0:02:51]}  g6 {[%clk 0:02:10]} 13. Bh6 {[%clk 0:02:48]}  Re8 {[%clk 0:02:11]} 14. Rad1 {[%clk 0:02:43]}  Nc5 {[%clk 0:01:57]} 15. Bg2 {[%clk 0:02:36]}  a5 {[%clk 0:01:58]} 16. e4 {[%clk 0:02:28]}  d6 {[%clk 0:01:51]} 17. Rfe1 {[%clk 0:02:24]}  a4 {[%clk 0:01:34]} 18. Nb5 {[%clk 0:02:10]}  Ba6 {[%clk 0:01:04]} 19. Nd4 {[%clk 0:02:06]}  Bg5 {[%clk 0:00:55]} 20. Nc6 {[%clk 0:01:51]}  Qf6 {[%clk 0:00:54]} 21. Bxg5 {[%clk 0:01:45]}  Qxg5 {[%clk 0:00:55]} 22. f4 {[%clk 0:01:45]}  Qf6 {[%clk 0:00:49]} 23. e5 {[%clk 0:01:40]}  Qg7 {[%clk 0:00:43]} 24. b4 {[%clk 0:01:28]}  axb3 {[%clk 0:00:40]} 25. axb3 {[%clk 0:01:28]}  Bb7 {[%clk 0:00:36]} 26. b4 {[%clk 0:01:25]}  Bxc6 {[%clk 0:00:36]} 27. dxc6 {[%clk 0:01:03]}  Ne6 {[%clk 0:00:32]} 28. exd6 {[%clk 0:00:58]}  cxd6 {[%clk 0:00:32]} 29. Rxd6 {[%clk 0:00:41]}  b5 {[%clk 0:00:32]} 30. Qe4 {[%clk 0:00:32]}  Rac8 {[%clk 0:00:27]} 31. Qe5 {[%clk 0:00:30]}  Qf8 {[%clk 0:00:27]} 32. Qd5 {[%clk 0:00:19]}  Nc7 {[%clk 0:00:23]} 33. Rxe8 {[%clk 0:00:18]}  Rxe8 {[%clk 0:00:22]} 34. Qd2 {[%clk 0:00:15]}  Re2 {[%clk 0:00:10]} 35. Qxe2 {[%clk 0:00:12]}  Qxd6 {[%clk 0:00:11]} 36. Qb2 {[%clk 0:00:09]}  h5 {[%clk 0:00:08]} 37. h3 {[%clk 0:00:09]}  h4 {[%clk 0:00:08]} 38. Qe5 {[%clk 0:00:05]}  Qd1+ {[%clk 0:00:08]} 39. Kh2 {[%clk 0:00:05]}  hxg3+ {[%clk 0:00:09]} 40. Kxg3 {[%clk 0:00:06]}  Qb3+ {[%clk 0:00:06]} 41. Kh4 {[%clk 0:00:06]}  Ne6 {[%clk 0:00:04]} 42. Bd5 {[%clk 0:00:06]}  Qxb4 {[%clk 0:00:02]} 43. Bxe6 {[%clk 0:00:06]}  fxe6 {[%clk 0:00:03]} 44. Qxe6+ {[%clk 0:00:06]}  Kg7 {[%clk 0:00:03]} 45. Qe5+ {[%clk 0:00:05]}  Kh6 {[%clk 0:00:04]} 46. Qh8# {[%clk 0:00:04]} 1-0


[Site "https://www.chess.com"]